bitfinex-derivatives/quotes_BTCF0:USTF0_20251009
["timestamp","ask_amount","ask_price","bid_price","bid_amount"]
[1759974161955,0.26426486,122580.0,122570.0,1.82702978]
[1759974162155,0.3369346,122580.0,122570.0,1.85918978]
[1759974162455,0.3369346,122580.0,122570.0,1.45918978]
[1759974163755,0.26426486,122580.0,122570.0,1.45918978]
[1759974165151,0.26426486,122580.0,122570.0,1.23756294]
[1759974165351,0.26426486,122580.0,122570.0,1.45918978]
[1759974165555,0.29189486,122580.0,122570.0,0.41728144]
[1759974165755,0.41189486,122580.0,122570.0,0.63890828]
[1759974165955,0.41189486,122580.0,122570.0,1.37758828]
[1759974169354,0.41189486,122580.0,122570.0,0.72046978]
[1759974169560,0.41189486,122580.0,122570.0,1.37754828]
[1759974170060,0.41189486,122580.0,122570.0,1.35897205]
[1759974170256,0.41189486,122580.0,122570.0,1.33937515]
[1759974175165,0.41189486,122580.0,122570.0,0.60073515]
[1759974175367,0.41189486,122580.0,122570.0,1.33937515]
[1759974175569,0.38426486,122580.0,122570.0,1.33937515]
[1759974175867,0.04426486,122580.0,122570.0,2.04256349]
[1759974176169,0.05815626,122600.0,122580.0,0.1648648]
[1759974176364,0.52502626,122600.0,122590.0,1.62600368]
[1759974177470,0.52902626,122600.0,122590.0,1.40437684]
[1759974177968,0.53202626,122600.0,122590.0,1.38580257]
[1759974178968,0.53202626,122600.0,122590.0,0.64716257]
[1759974179167,0.38987,122600.0,122590.0,1.60738941]
[1759974179469,0.39387,122600.0,122590.0,1.60838941]
[1759974182865,0.39387,122600.0,122590.0,0.64816257]
[1759974183065,0.39387,122600.0,122590.0,1.38672257]
[1759974183868,0.39387,122600.0,122590.0,1.46827077]
[1759974184377,1.15467,122600.0,122590.0,0.001]
[1759974184671,1.15467,122600.0,122580.0,0.22162684]
[1759974184672,1.22733974,122600.0,122580.0,0.22162684]
[1759974184867,0.38557,122590.0,122570.0,0.04291356]
[1759974185060,0.02477,122580.0,122570.0,0.45694356]
[1759974185265,0.08293089,122580.0,122570.0,1.4171304]
[1759974185865,0.08293089,122580.0,122570.0,1.40637684]
[1759974186470,0.02477,122580.0,122570.0,1.40637684]
[1759974186771,0.44473089,122580.0,122570.0,0.96118684]
[1759974187373,0.08793089,122580.0,122570.0,1.04908684]
[1759974188067,0.10641819,122580.0,122570.0,1.04908684]
[1759974189875,0.10641819,122580.0,122570.0,0.82746]
[1759974190069,0.10641819,122580.0,122570.0,1.04908684]
[1759974190972,0.10641819,122580.0,122570.0,0.99585684]
[1759974191271,0.10641819,122580.0,122570.0,1.04908684]
[1759974192573,0.0482573,122580.0,122570.0,1.01090972]
[1759974193172,0.08790025,122580.0,122570.0,1.01341684]
[1759974193472,0.10638755,122580.0,122570.0,1.01341684]
[1759974193667,0.18328494,122580.0,122570.0,0.94727037]
[1759974194063,0.0815473,122580.0,122570.0,1.01341684]
[1759974194569,0.0482573,122580.0,122570.0,0.30652684]
[1759974194769,0.10242598,122580.0,122570.0,1.40588684]
[1759974194975,0.12091328,122580.0,122570.0,1.40588684]
[1759974195176,0.12091328,122580.0,122570.0,0.66732684]
[1759974195373,0.12091328,122580.0,122570.0,1.40588684]
[1759974195979,0.12091328,122580.0,122570.0,1.51659174]
[1759974197077,0.12091328,122580.0,122570.0,1.59816134]
[1759974197477,0.15590764,122590.0,122580.0,0.166463]
[1759974197774,0.10173764,122600.0,122590.0,0.1664563]
[1759974198081,0.22,122600.0,122590.0,1.76431391]
[1759974198683,0.22,122600.0,122590.0,1.02575391]
[1759974198878,0.22,122600.0,122590.0,1.76435391]
[1759974199178,0.22,122600.0,122590.0,1.76431391]
[1759974199372,0.4,122600.0,122590.0,1.02575391]
[1759974199573,0.51231018,122600.0,122590.0,1.51659174]
[1759974199973,0.51631018,122600.0,122590.0,1.51759174]
[1759974200180,0.45817,122600.0,122590.0,1.51759174]
[1759974200373,0.45817,122600.0,122590.0,1.51775174]
[1759974200576,0.52708018,122600.0,122590.0,1.12528174]
[1759974200776,0.52808018,122600.0,122590.0,1.07313174]
[1759974201174,0.46994,122600.0,122590.0,0.16816587]
[1759974201370,0.46994,122600.0,122580.0,0.16616587]
[1759974201371,0.07024,122590.0,122580.0,0.16616587]
[1759974201576,0.07024,122590.0,122580.0,1.07121174]
[1759974201977,0.07024,122590.0,122580.0,1.07133174]
[1759974202279,0.07024,122590.0,122580.0,0.33233174]
[1759974202475,0.47124,122590.0,122580.0,1.07329174]
[1759974202678,1.21204,122590.0,122580.0,0.98509854]
[1759974203081,1.31377764,122590.0,122580.0,0.98509854]
[1759974203279,1.31377764,122590.0,122580.0,0.34533174]
[1759974203280,1.31677764,122590.0,122580.0,0.34533174]
[1759974203476,1.31677764,122590.0,122580.0,0.17916587]
[1759974203781,1.27313756,122590.0,122580.0,0.34533174]
[1759974204381,1.27013756,122590.0,122580.0,0.33433174]
[1759974204582,1.27313756,122590.0,122580.0,0.33633174]
[1759974205184,1.27213756,122590.0,122580.0,0.33433174]
[1759974205381,1.38120587,122590.0,122580.0,0.003]
[1759974205974,1.38020587,122590.0,122580.0,0.002]
[1759974206179,1.22004,122590.0,122580.0,0.003]
[1759974206485,1.45880951,122590.0,122580.0,0.003]
[1759974207594,2.19776951,122590.0,122570.0,0.16616587]
[1759974207789,0.48553059,122580.0,122570.0,0.16616587]
[1759974208287,0.85553059,122580.0,122570.0,0.16616587]
[1759974208582,0.05417,122550.0,122540.0,0.61186587]
[1759974208786,0.07024,122550.0,122540.0,0.3608]
[1759974209086,0.07024,122550.0,122540.0,1.41362934]
[1759974209286,0.07024,122550.0,122540.0,1.07141174]
[1759974209483,0.08798113,122550.0,122540.0,0.33233174]
[1759974209684,0.08798113,122550.0,122540.0,1.07145174]
[1759974210081,0.08898113,122550.0,122540.0,1.07445174]
[1759974210286,0.0992288,122550.0,122540.0,1.07445174]
[1759974210689,0.1022288,122550.0,122540.0,1.08045174]
[1759974213189,0.1683435,122550.0,122540.0,1.08045174]
[1759974213586,0.15809583,122550.0,122540.0,0.39456174]
[1759974213892,0.14202583,122550.0,122540.0,0.42759174]
[1759974214094,0.14202583,122550.0,122540.0,1.16667174]
[1759974214294,0.15757583,122550.0,122540.0,1.13364174]
[1759974214691,0.09146113,122550.0,122540.0,1.13364174]
[1759974216093,0.09146113,122550.0,122540.0,0.39456174]
[1759974216291,0.10162925,122550.0,122540.0,1.13360174]
[1759974216490,0.10162925,122550.0,122540.0,0.39456174]
[1759974216693,0.10162925,122550.0,122540.0,1.13356174]
[1759974217099,0.10162925,122550.0,122540.0,1.114979]
[1759974217398,0.10162925,122550.0,122540.0,1.09537523]
[1759974217996,0.16589066,122550.0,122540.0,1.09537523]
[1759974222289,0.52669066,122550.0,122540.0,0.30314523]
[1759974222596,0.52669066,122550.0,122540.0,1.04206523]
[1759974224997,0.52669066,122550.0,122540.0,0.35400523]
[1759974225201,0.52669066,122550.0,122540.0,1.05465802]
[1759974225704,0.06447,122540.0,122520.0,0.19783587]
[1759974225998,0.4448,122530.0,122520.0,0.21702587]
[1759974226194,0.46254113,122530.0,122520.0,0.95582587]
[1759974226595,0.10174113,122530.0,122520.0,0.95582587]
[1759974226997,0.10174113,122530.0,122520.0,1.12499174]
[1759974227194,0.10174113,122530.0,122520.0,1.12799174]
[1759974227395,0.10174113,122530.0,122520.0,1.12499174]
[1759974227590,0.10474113,122530.0,122520.0,0.34033174]
[1759974227901,0.46554113,122530.0,122520.0,0.74424]
[1759974228100,0.46554113,122530.0,122520.0,1.07657174]
[1759974228600,0.10574113,122530.0,122520.0,0.74932]
[1759974228902,0.10574113,122530.0,122520.0,1.08165174]
[1759974230498,0.07444113,122530.0,122520.0,1.16322174]
[1759974231197,0.11477535,122530.0,122520.0,1.16322174]
[1759974231397,0.13251648,122530.0,122520.0,1.16322174]
[1759974231793,0.13251648,122530.0,122520.0,1.13247174]
[1759974231794,0.16381648,122530.0,122520.0,1.13247174]
[1759974232097,0.16381648,122530.0,122520.0,1.08161174]
[1759974232492,0.52461648,122530.0,122520.0,0.34233174]
[1759974232701,0.52461648,122530.0,122520.0,1.08153174]
[1759974233199,0.46654113,122530.0,122520.0,0.8857588]
[1759974233398,0.46654113,122530.0,122520.0,1.05192467]
[1759974233593,0.52460697,122530.0,122520.0,1.05192467]
[1759974233995,0.13250697,122530.0,122520.0,0.56050054]
[1759974234195,0.13250697,122530.0,122520.0,1.66046054]
[1759974234395,0.13250697,122530.0,122520.0,1.00290344]
[1759974234596,0.13250697,122530.0,122520.0,1.74210344]
[1759974237899,0.13250697,122530.0,122520.0,2.14206344]
[1759974238298,0.08079979,122530.0,122520.0,1.40290344]
[1759974238500,0.02273395,122530.0,122520.0,2.14214344]
[1759974239497,0.02273395,122530.0,122520.0,1.40290344]
[1759974239698,0.02273395,122530.0,122520.0,2.14218344]
[1759974241303,0.02273395,122530.0,122520.0,2.14210344]
[1759974243598,0.06206584,122530.0,122520.0,2.14210344]
[1759974243800,0.08079979,122530.0,122520.0,2.14210344]
[1759974244402,0.08079979,122530.0,122520.0,2.14202344]
[1759974247606,0.02273395,122530.0,122520.0,1.40290344]
[1759974247807,0.07347395,122530.0,122520.0,0.77474174]
[1759974248011,0.12734364,122530.0,122520.0,0.77474174]
[1759974248209,0.14607759,122530.0,122520.0,1.51398174]
[1759974248403,0.17797759,122530.0,122520.0,1.47579249]
[1759974248912,0.17797759,122530.0,122520.0,1.43168022]
[1759974251815,0.10537395,122530.0,122520.0,1.43168022]
[1759974252413,0.10537395,122530.0,122520.0,0.74794022]
[1759974252616,0.07347395,122530.0,122520.0,1.02676899]
[1759974253117,0.07347395,122530.0,122520.0,1.68424609]
[1759974253415,0.10537395,122530.0,122520.0,1.68424609]
[1759974255318,0.10537395,122530.0,122520.0,0.36010848]
[1759974255621,0.52441003,122530.0,122520.0,0.33233174]
[1759974255816,0.52441003,122530.0,122520.0,1.07133174]
[1759974256010,0.52441003,122530.0,122520.0,0.33233174]
[1759974256215,0.52441003,122530.0,122520.0,1.07133174]
[1759974256416,0.0319,122510.0,122500.0,0.19919587]
[1759974256617,0.10137395,122510.0,122500.0,0.38783174]
[1759974257022,0.10137395,122510.0,122500.0,1.12699174]
[1759974257923,0.10137395,122510.0,122500.0,1.01650436]
[1759974258725,0.10137395,122510.0,122500.0,1.40836436]
[1759974259325,0.10237395,122510.0,122500.0,1.41827614]
[1759974259522,0.10237395,122510.0,122500.0,1.49989234]
[1759974259725,0.07047395,122510.0,122500.0,0.76073234]
[1759974260025,0.07047395,122510.0,122500.0,1.49989234]
[1759974261518,0.07047395,122510.0,122500.0,1.41827614]
[1759974261717,0.07047395,122510.0,122500.0,0.67911614]
[1759974261923,0.10237395,122510.0,122500.0,0.63814436]
[1759974262125,0.10237395,122510.0,122500.0,1.01654436]
[1759974262428,0.16642786,122510.0,122500.0,1.01654436]
[1759974262628,0.16642786,122510.0,122500.0,0.27734436]
[1759974262927,0.16642786,122510.0,122500.0,1.01658436]
[1759974265824,0.16642786,122510.0,122480.0,0.61370436]
[1759974265825,0.0319,122500.0,122480.0,0.61370436]
[1759974266030,0.05074,122490.0,122480.0,0.66920436]
[1759974266226,0.10137395,122490.0,122480.0,0.66920436]
[1759974266529,0.10137395,122490.0,122480.0,1.40876436]
[1759974267127,0.10137395,122490.0,122480.0,1.63060872]
[1759974267824,0.10137395,122490.0,122480.0,1.63160872]
[1759974268525,0.10137395,122490.0,122480.0,1.63060872]
[1759974268725,0.10237395,122490.0,122480.0,1.63160872]
[1759974269224,0.10237395,122490.0,122480.0,0.63914436]
[1759974269428,0.10237395,122490.0,122480.0,1.35168685]
[1759974269830,0.10237395,122490.0,122480.0,0.25140685]
[1759974270030,0.10237395,122490.0,122480.0,0.99092685]
[1759974270525,0.10237395,122490.0,122480.0,0.22284436]
[1759974270921,0.10237395,122490.0,122480.0,0.96248436]
[1759974271125,0.10237395,122490.0,122480.0,0.22284436]
[1759974271321,0.46317395,122490.0,122480.0,0.96248436]
[1759974273325,0.46317395,122490.0,122480.0,0.22284436]
[1759974273530,0.46317395,122490.0,122480.0,1.01794436]
[1759974273731,0.46317395,122490.0,122480.0,0.27834436]
[1759974273927,0.46317395,122490.0,122480.0,0.22284436]
[1759974274127,0.46317395,122490.0,122480.0,0.96244436]
[1759974274333,0.10237395,122490.0,122480.0,0.49628872]
[1759974274533,0.10237395,122490.0,122480.0,1.23584872]
[1759974274834,0.10237395,122490.0,122480.0,0.49628872]
[1759974275023,0.07047395,122490.0,122480.0,0.88982872]
[1759974275223,0.07047395,122490.0,122480.0,1.62938872]
[1759974275429,0.07047395,122490.0,122480.0,1.71101832]
[1759974275633,0.07047395,122490.0,122480.0,1.71109832]
[1759974276132,0.07047395,122490.0,122480.0,0.97145832]
[1759974276530,0.10089395,122490.0,122480.0,0.85708872]
[1759974276732,0.10089395,122490.0,122480.0,0.22284436]
[1759974277132,0.46169395,122490.0,122480.0,0.96252436]
[1759974277634,0.46169395,122490.0,122480.0,0.22284436]
[1759974277835,0.46169395,122490.0,122480.0,0.96280436]
[1759974279236,0.46169395,122490.0,122480.0,1.01440436]
[1759974279431,0.46169395,122490.0,122480.0,0.79256]
[1759974279630,0.46169395,122490.0,122480.0,0.96280436]
[1759974283627,0.46169395,122490.0,122480.0,0.74096]
[1759974283832,0.46169395,122490.0,122480.0,0.96280436]
[1759974284339,0.10089395,122490.0,122480.0,0.27444436]
[1759974284536,0.10089395,122490.0,122480.0,0.49628872]
[1759974284737,0.10089395,122490.0,122480.0,1.23632872]
[1759974285234,0.10089395,122490.0,122480.0,1.01448436]
[1759974286136,0.15912769,122490.0,122480.0,1.01448436]
[1759974286337,0.03254,122480.0,122470.0,0.4084047]
[1759974286538,0.09064186,122480.0,122470.0,1.1484047]
[1759974286742,0.10937581,122480.0,122470.0,1.00944906]
[1759974287239,0.16139581,122480.0,122470.0,0.32289906]
[1759974287444,0.16139581,122480.0,122470.0,1.06285906]
[1759974287739,0.16139581,122480.0,122470.0,0.32289906]
[1759974287938,0.16239581,122480.0,122470.0,0.27044906]
[1759974288341,0.16239581,122480.0,122470.0,1.01064906]
[1759974289736,0.16239581,122480.0,122470.0,0.27044906]
[1759974290134,0.16239581,122480.0,122470.0,1.01056906]
[1759974290330,0.16139581,122480.0,122470.0,1.00956906]
[1759974290535,0.16239581,122480.0,122470.0,0.26944906]
[1759974290734,0.16239581,122480.0,122470.0,1.00956906]
[1759974291242,0.10429395,122480.0,122470.0,1.00956906]
[1759974291544,0.16245858,122480.0,122470.0,1.00956906]
[1759974292240,0.10429395,122480.0,122470.0,1.00956906]
[1759974292444,0.10429395,122480.0,122470.0,1.06301906]
[1759974292637,0.10429395,122480.0,122470.0,1.00956906]
[1759974293738,0.10429395,122480.0,122470.0,1.06301906]
[1759974293934,0.16248525,122480.0,122470.0,1.06301906]
[1759974294342,0.16248525,122480.0,122470.0,1.04442647]
[1759974294535,0.16248525,122480.0,122470.0,0.30430647]
[1759974294939,0.16248525,122480.0,122470.0,1.04426647]
[1759974296143,0.16848525,122480.0,122470.0,1.04526647]
[1759974297939,0.13594525,122480.0,122470.0,0.55987083]
[1759974298243,0.13594525,122480.0,122470.0,1.29979083]
[1759974298642,0.16848525,122480.0,122470.0,1.29979083]
[1759974299042,0.11029395,122480.0,122470.0,1.29979083]
[1759974299544,0.11029395,122480.0,122470.0,0.92067083]
[1759974299745,0.11029395,122480.0,122470.0,1.66055083]
[1759974300144,0.11029395,122480.0,122470.0,0.92067083]
[1759974300446,0.07775395,122480.0,122470.0,1.00230703]
[1759974300636,0.07775395,122480.0,122470.0,0.92067083]
[1759974300842,0.11029395,122480.0,122470.0,1.66051083]
[1759974301339,0.11029395,122480.0,122470.0,0.69882647]
[1759974301546,0.11029395,122480.0,122470.0,1.62779083]
[1759974301939,0.11029395,122480.0,122470.0,0.88795083]
[1759974302139,0.11029395,122480.0,122470.0,0.66610647]
[1759974302345,0.07775395,122480.0,122470.0,1.00230703]
[1759974302746,0.07775395,122480.0,122470.0,1.74210703]
[1759974303749,0.07775395,122480.0,122470.0,1.40230703]
[1759974303949,0.07775395,122480.0,122470.0,2.14214703]
[1759974304251,0.07775395,122480.0,122470.0,1.40230703]
[1759974304438,0.07775395,122480.0,122470.0,2.14210703]
[1759974305040,0.02573395,122480.0,122470.0,2.14210703]
[1759974308552,0.14380112,122510.0,122500.0,0.05023]
[1759974308750,0.14380112,122510.0,122500.0,0.63287436]
[1759974308948,0.14380112,122510.0,122500.0,1.09619436]
[1759974309349,0.09532961,122510.0,122500.0,1.09619436]
[1759974309551,0.08548,122510.0,122500.0,1.09619436]
[1759974309852,0.08848,122510.0,122500.0,1.37263436]
[1759974311043,0.09848,122510.0,122500.0,1.37363436]
[1759974313857,0.09848,122510.0,122500.0,0.63387436]
[1759974314155,0.09848,122510.0,122500.0,1.37351436]
[1759974314553,0.09848,122510.0,122500.0,0.22284436]
[1759974314760,0.09848,122510.0,122500.0,0.96236436]
[1759974315656,0.16424428,122510.0,122500.0,0.96236436]
[1759974316057,0.56424428,122510.0,122500.0,0.96236436]
[1759974317654,0.56424428,122510.0,122500.0,0.74052]
[1759974317858,0.56424428,122510.0,122500.0,1.07329918]
[1759974318458,0.56424428,122510.0,122500.0,0.33377918]
[1759974318757,0.56424428,122510.0,122500.0,1.07317918]
[1759974320659,0.58274092,122510.0,122500.0,1.07317918]
[1759974321453,0.58274092,122510.0,122500.0,1.07313918]
[1759974322053,0.94354092,122510.0,122500.0,0.001]
[1759974322258,0.94354092,122510.0,122500.0,0.71466959]
[1759974322454,0.94354092,122510.0,122500.0,0.16738959]
[1759974322661,0.08462,122480.0,122470.0,0.44004211]
[1759974322862,0.10311664,122480.0,122470.0,0.44004211]
[1759974323062,0.10311664,122480.0,122470.0,1.17944211]
[1759974323456,0.29504017,122510.0,122500.0,0.05023]
[1759974323658,0.43272419,122510.0,122500.0,0.40731]
[1759974323864,0.49091644,122510.0,122500.0,0.90647877]
[1759974324157,0.23272419,122510.0,122500.0,0.54939877]
[1759974324352,0.23272419,122510.0,122500.0,0.94126877]
[1759974324353,0.16695991,122510.0,122500.0,0.94126877]
[1759974324557,0.10695991,122510.0,122500.0,1.68078877]
[1759974324754,0.10395991,122510.0,122500.0,1.64975877]
[1759974324960,0.11095991,122510.0,122500.0,1.65075877]
[1759974325356,0.07905991,122510.0,122500.0,1.02388497]
[1759974325759,0.07905991,122510.0,122500.0,1.76348497]
[1759974325961,0.08205991,122510.0,122500.0,1.76348497]
[1759974328966,0.08205991,122510.0,122500.0,2.12428497]
[1759974329165,0.08205991,122510.0,122500.0,1.38468497]
[1759974329367,0.05358,122520.0,122510.0,0.1629044]
[1759974329564,0.08462,122530.0,122520.0,0.0813]
[1759974329773,0.16462,122530.0,122520.0,1.68070877]
[1759974330258,0.16462,122530.0,122520.0,0.94126877]
[1759974330466,0.39462,122530.0,122520.0,1.48336918]
[1759974331473,0.40362,122530.0,122520.0,1.48436918]
[1759974331767,0.38362,122530.0,122520.0,1.48436918]
[1759974332269,0.14862,122530.0,122520.0,1.48536918]
[1759974332569,0.42862,122530.0,122520.0,1.48536918]
[1759974332868,0.42862,122530.0,122520.0,1.48544918]
[1759974333370,0.42862,122530.0,122520.0,0.74580918]
[1759974333570,0.42862,122530.0,122520.0,1.48540918]
[1759974333771,0.48681225,122530.0,122520.0,1.48540918]
[1759974335568,0.48681225,122530.0,122520.0,0.33477918]
[1759974335771,0.42862,122530.0,122520.0,1.37240076]
[1759974335967,0.50122364,122530.0,122520.0,1.43509918]
[1759974337972,0.50122364,122530.0,122520.0,0.69557918]
[1759974338172,0.50122364,122530.0,122520.0,1.43501918]
[1759974338374,0.50122364,122530.0,122520.0,0.69557918]
[1759974338674,0.42862,122530.0,122520.0,1.07421918]
[1759974338870,0.82862,122530.0,122520.0,0.33477918]
[1759974339073,0.82862,122530.0,122520.0,1.07417918]
[1759974339873,0.82862,122530.0,122520.0,0.33477918]
[1759974340074,0.82862,122530.0,122520.0,1.07417918]
[1759974340567,0.42862,122530.0,122520.0,1.24056877]
[1759974340774,0.1568128,122530.0,122520.0,0.91518877]
[1759974340978,0.1568128,122530.0,122520.0,1.65502877]
[1759974341380,0.1760016,122530.0,122520.0,1.73663167]
[1759974341673,0.0867688,122530.0,122520.0,0.99679167]
[1759974341875,0.0867688,122530.0,122520.0,1.76859167]
[1759974342066,0.0867688,122530.0,122520.0,1.02867167]
[1759974342272,0.0867688,122530.0,122520.0,1.76891167]
[1759974342471,0.0867688,122530.0,122520.0,1.02867167]
[1759974342677,0.1449616,122530.0,122520.0,1.02867167]
[1759974343073,0.1449616,122530.0,122520.0,1.76887167]
[1759974343774,0.0867688,122530.0,122520.0,1.76887167]
[1759974344176,0.0867688,122530.0,122520.0,1.02867167]
[1759974344677,0.0867688,122530.0,122520.0,1.76879167]
[1759974345273,0.1187088,122530.0,122520.0,1.76879167]
[1759974345574,0.1187088,122530.0,122520.0,0.91518877]
[1759974345774,0.1187088,122530.0,122520.0,1.48887918]
[1759974345968,0.1187088,122530.0,122520.0,1.65526877]
[1759974346882,0.1187088,122530.0,122520.0,0.41602]
[1759974347179,0.1187088,122530.0,122520.0,1.43557918]
[1759974347480,0.1187088,122530.0,122520.0,0.69557918]
[1759974347669,0.1187088,122530.0,122520.0,1.43557918]
[1759974349079,0.1187088,122530.0,122520.0,0.3628]
[1759974349281,0.1187088,122530.0,122520.0,1.43557918]
[1759974352887,0.1187088,122530.0,122520.0,1.43541918]
[1759974353382,0.1187088,122530.0,122520.0,1.07461918]
[1759974353888,0.1187088,122530.0,122520.0,1.07457918]
[1759974354486,0.1769016,122530.0,122520.0,1.07457918]
[1759974354687,0.1769016,122530.0,122520.0,0.90618959]
[1759974354887,0.1769016,122530.0,122520.0,1.07257918]
[1759974356385,0.1769016,122530.0,122520.0,0.33277918]
[1759974356589,0.1769016,122530.0,122520.0,1.07249918]
[1759974356791,0.1769016,122530.0,122520.0,0.74480918]
[1759974356990,0.1769016,122530.0,122520.0,1.65083877]
[1759974358390,0.1769016,122530.0,122520.0,0.91119877]
[1759974358693,0.0867688,122530.0,122520.0,0.94276877]
[1759974358892,0.14509208,122530.0,122520.0,1.68232877]
[1759974359293,0.17703208,122530.0,122520.0,1.68232877]
[1759974359693,0.17703208,122530.0,122520.0,0.94276877]
[1759974359895,0.17703208,122530.0,122520.0,1.68228877]
[1759974360397,0.17703208,122530.0,122520.0,1.02437167]
[1759974360698,0.11105328,122540.0,122530.0,0.1643962]
[1759974360991,0.11105328,122540.0,122530.0,1.76408497]
[1759974361295,0.11105328,122540.0,122530.0,1.02436497]
[1759974361489,0.05273,122540.0,122530.0,1.76408497]
[1759974362498,0.05773,122540.0,122530.0,1.76408497]
[1759974362699,0.06273,122540.0,122530.0,1.00678393]
[1759974362898,0.06273,122540.0,122530.0,1.74646393]
[1759974363199,0.06273,122540.0,122530.0,1.00678393]
[1759974363399,0.06273,122540.0,122530.0,1.74646393]
[1759974363596,0.05773,122540.0,122530.0,1.00678393]
[1759974363797,0.05873,122540.0,122530.0,1.74642393]
[1759974364197,0.05473,122540.0,122530.0,1.74642393]
[1759974366103,0.05473,122540.0,122530.0,1.40678393]
[1759974366297,0.002,122540.0,122530.0,2.14634393]
[1759974366501,0.10924328,122570.0,122560.0,0.06058]
[1759974366704,0.24989,122570.0,122560.0,0.56122795]
[1759974366902,0.50989,122570.0,122560.0,1.34061754]
[1759974367103,0.07989,122570.0,122560.0,1.50700713]
[1759974367300,0.23989,122570.0,122560.0,1.34061754]
[1759974367503,0.02897,122560.0,122540.0,0.52718959]
[1759974367701,0.07989,122550.0,122540.0,0.52718959]
[1759974368597,0.07989,122550.0,122530.0,0.3618]
[1759974368598,0.07989,122540.0,122530.0,0.3618]
[1759974368905,0.07989,122540.0,122530.0,0.90758959]
[1759974369306,0.08958477,122540.0,122530.0,0.90766959]
[1759974369503,0.08958477,122540.0,122530.0,0.90666959]
[1759974369908,0.08958477,122540.0,122530.0,0.33277918]
[1759974370107,0.08958477,122540.0,122530.0,1.07321918]
[1759974370304,0.09058477,122540.0,122530.0,1.07421918]
[1759974370505,0.09058477,122540.0,122530.0,1.07921918]
[1759974372610,0.10897813,122540.0,122530.0,1.07921918]
[1759974373511,0.09928336,122540.0,122530.0,0.38781918]
[1759974373812,0.09928336,122540.0,122530.0,1.12849918]
[1759974374016,0.09928336,122540.0,122530.0,0.99660497]
[1759974374311,0.07031336,122540.0,122530.0,1.76838497]
[1759974374511,0.05192,122540.0,122530.0,1.60199538]
[1759974374812,0.07031336,122540.0,122530.0,0.77975918]
[1759974375110,0.07031336,122540.0,122530.0,1.52043918]
[1759974375612,0.09928336,122540.0,122530.0,1.52043918]
[1759974376003,0.09928336,122540.0,122530.0,1.76842497]
[1759974376207,0.09928336,122540.0,122530.0,1.60203538]
[1759974376402,0.09928336,122540.0,122530.0,1.76842497]
[1759974376608,0.09928336,122540.0,122530.0,1.68682877]
[1759974376810,0.09928336,122540.0,122530.0,1.52043918]
[1759974377612,0.09928336,122540.0,122530.0,1.76842507]
[1759974377816,0.07031336,122540.0,122530.0,1.76842507]
[1759974379015,0.07031336,122540.0,122530.0,1.02774507]
[1759974379316,0.07031336,122540.0,122530.0,1.76826507]
[1759974379806,0.07031336,122540.0,122530.0,1.49075115]
[1759974382210,0.07031336,122540.0,122530.0,0.75023115]
[1759974382410,0.09928336,122540.0,122530.0,0.61891326]
[1759974382612,0.09928336,122540.0,122530.0,1.35927326]
[1759974382806,0.09928336,122540.0,122530.0,0.61891326]
[1759974383116,0.09928336,122540.0,122530.0,1.35927326]
[1759974383609,0.09928336,122540.0,122530.0,1.35923326]
[1759974384812,0.09928336,122540.0,122530.0,0.70050956]
[1759974385117,0.09928336,122540.0,122530.0,1.44082956]
[1759974385312,0.09928336,122540.0,122530.0,0.61891326]
[1759974385520,0.09928336,122540.0,122530.0,1.35919326]
[1759974385718,0.09928336,122540.0,122530.0,0.61891326]
[1759974386018,0.09928336,122540.0,122530.0,1.35915326]
[1759974388217,0.09928336,122540.0,122530.0,1.35907326]
[1759974390021,0.09928336,122540.0,122530.0,1.44066956]
[1759974393116,0.07260364,122570.0,122560.0,0.01991]
[1759974393322,0.16761,122570.0,122560.0,0.8736097]
[1759974393621,0.16761,122570.0,122560.0,1.37436485]
[1759974394124,0.04827,122580.0,122570.0,0.1577496]
[1759974394315,0.04827,122580.0,122570.0,0.74020445]
[1759974394714,0.02934,122600.0,122590.0,0.1609263]
[1759974394913,0.11827,122600.0,122590.0,1.68886114]
[1759974395115,0.11827,122600.0,122590.0,0.94646114]
[1759974395323,0.11827,122600.0,122590.0,1.68886114]
[1759974395524,0.11827,122600.0,122590.0,1.6258797]
[1759974395723,0.07761,122600.0,122590.0,1.6258797]
[1759974395920,0.47761,122600.0,122590.0,1.01360485]
[1759974396825,0.48261,122600.0,122590.0,1.01360485]
[1759974397124,0.48761,122600.0,122590.0,1.01460485]
[1759974398024,0.48761,122600.0,122590.0,1.01448485]
[1759974398318,0.07761,122580.0,122570.0,0.3608]
[1759974398523,0.07761,122580.0,122570.0,1.32481485]
[1759974399525,0.08261,122580.0,122570.0,1.32481485]
[1759974400522,0.08261,122580.0,122570.0,1.32581485]
[1759974400523,0.08561,122580.0,122570.0,1.32581485]
[1759974400714,0.08561,122580.0,122570.0,0.58345485]
[1759974400916,0.08561,122580.0,122570.0,0.66282485]
[1759974401118,0.08561,122580.0,122570.0,1.40498485]
[1759974401324,0.05627,122580.0,122570.0,1.40498485]
[1759974401623,0.05627,122580.0,122570.0,1.48659445]
[1759974401817,0.05627,122580.0,122570.0,0.74439445]
[1759974402016,0.05627,122580.0,122570.0,1.48655445]
[1759974402214,0.05627,122580.0,122570.0,0.74439445]
[1759974402423,0.05627,122580.0,122570.0,1.48655445]
[1759974402821,0.05627,122580.0,122570.0,0.72581861]
[1759974403126,0.05627,122580.0,122570.0,1.46797861]
[1759974404125,0.05627,122580.0,122570.0,1.46785861]
[1759974405025,0.07473335,122580.0,122570.0,1.46785861]
[1759974408025,0.07473335,122580.0,122570.0,0.72581861]
[1759974408230,0.07473335,122580.0,122570.0,1.46761861]
[1759974411925,0.07473335,122580.0,122570.0,0.72581861]
[1759974412121,0.07473335,122580.0,122570.0,1.46741861]
[1759974412530,0.07473335,122580.0,122570.0,1.46737861]
[1759974413231,0.07473335,122580.0,122570.0,0.72581861]
[1759974413730,0.07473335,122580.0,122570.0,1.46733861]
[1759974414231,0.07473335,122580.0,122570.0,0.72581861]
[1759974414634,0.10611335,122580.0,122570.0,1.46725861]
[1759974415135,0.07473335,122580.0,122570.0,0.74439445]
[1759974415435,0.07473335,122580.0,122570.0,1.48583445]
[1759974417330,0.10611335,122580.0,122570.0,0.63304485]
[1759974417638,0.10611335,122580.0,122570.0,1.37440485]
[1759974420133,0.10611335,122580.0,122570.0,0.63304485]
[1759974420533,0.10611335,122580.0,122570.0,1.37424485]
[1759974421037,0.16426521,122580.0,122570.0,1.35566809]
[1759974422038,0.16426521,122580.0,122570.0,0.59487063]
[1759974422335,0.16426521,122580.0,122570.0,1.33599063]
[1759974422533,0.10611335,122580.0,122570.0,1.33599063]
[1759974423033,0.16455737,122580.0,122570.0,0.22265485]
[1759974423336,0.16456698,122580.0,122570.0,0.96373485]
[1759974423927,0.17871699,122580.0,122570.0,0.85349644]
[1759974424334,0.10611335,122580.0,122570.0,0.85349644]
[1759974424536,0.17921984,122580.0,122570.0,0.90107644]
[1759974425036,0.17921984,122580.0,122570.0,0.15999644]
[1759974425429,0.17921984,122580.0,122570.0,0.90095644]